lending/lending_fUSD_20250808
["ID","MTS","AMOUNT","RATE_DAILY","PERIOD"]
[378005937,1754665845062,-204.03,0.00018773,2]
[378005938,1754665845072,-400.0,0.00018773,2]
[378005939,1754665845198,-460.62,0.00018773,2]
[378005940,1754665845219,-400.0,0.00018773,2]
[378005941,1754665845230,-400.0,0.00018773,2]
[378005942,1754665845242,-400.0,0.00018773,2]
[378005943,1754665845252,-400.0,0.00018773,2]
[378005944,1754665845262,-371.92,0.00018773,2]
[378005945,1754665845272,-1003.64,0.00018773,2]
[378005946,1754665845284,-475.98,0.00018773,2]
[378005947,1754665845296,-400.0,0.00018773,2]
[378005948,1754665845306,-450.88,0.00018773,2]
[378005949,1754665845316,-428.3,0.00018773,2]
[378005950,1754665845327,-485.3,0.00018773,2]
[378005951,1754665845339,-1113.86,0.00018773,2]
[378005952,1754665845348,-833.67,0.00018773,2]
[378005953,1754665845358,-400.92,0.00018773,2]
[378005954,1754665845368,-400.0,0.00018773,2]
[378005955,1754665845377,-400.0,0.00018773,2]
[378005956,1754665845389,-400.0,0.00018773,2]
[378005957,1754665845407,-826.02,0.00018773,2]
[378005958,1754665845417,-490.97,0.00018773,2]
[378005959,1754665845426,-158.13,0.00018773,2]
[378005960,1754665845436,-684.28,0.00018773,2]
[378005961,1754665845449,-1125.99,0.00018773,2]
[378005962,1754665845461,-414.74,0.00018773,2]
[378005963,1754665845470,-576.92,0.00018773,2]
[378005964,1754665845481,-504.74,0.00018773,2]
[378005965,1754665845490,-400.0,0.00018773,2]
[378005966,1754665845500,-794.31,0.00018773,2]
[378005967,1754665845510,-1644.44,0.00018773,2]
[378005968,1754665845520,-400.0,0.00018773,2]
[378005969,1754665845530,-400.0,0.00018773,2]
[378005970,1754665845540,-160.22,0.00018773,2]
[378005971,1754665845550,-400.0,0.00018773,2]
[378005972,1754665845560,-400.0,0.00018773,2]
[378005973,1754665845570,-1479.1,0.00018773,2]
[378005974,1754665845580,-400.0,0.00018773,2]
[378005975,1754665845591,-1392.26,0.00018773,2]
[378005976,1754665845601,-487.25,0.00018773,2]
[378005977,1754665845610,-400.0,0.00018773,2]
[378005978,1754665845620,-827.27,0.00018773,2]
[378005979,1754665845632,-3663.05,0.00018773,2]
[378005980,1754665845641,-1694.31,0.00018773,2]
[378005981,1754665845651,-1134.91,0.00018773,2]
[378005982,1754665845661,-569.53,0.00018773,2]
[378005983,1754665845670,-400.0,0.00018773,2]
[378005984,1754665845679,-400.0,0.00018773,2]
[378005985,1754665845688,-1604.55,0.00018773,2]
[378005986,1754665845698,-400.0,0.00018773,2]
[378005987,1754665845708,-1726.2,0.00018773,2]
[378005988,1754665845718,-1635.03,0.00018773,2]
[378005989,1754665845727,-400.0,0.00018773,2]
[378005990,1754665845737,-4209.07,0.00018773,2]
[378005991,1754665845747,-7336.42,0.00018773,2]
[378005992,1754665845757,-400.0,0.00018773,2]
[378005993,1754665845767,-400.0,0.00018773,2]
[378005994,1754665845778,-474.76,0.00018773,2]
[378005995,1754665845789,-400.0,0.00018773,2]
[378005996,1754665845798,-400.0,0.00018773,2]
[378005997,1754665845808,-1402.19,0.00018773,2]
[378005998,1754665845817,-1230.28,0.00018773,2]
[378005999,1754665845827,-2130.07,0.00018773,2]
[378006000,1754665845837,-400.0,0.00018773,2]
[378006001,1754665845851,-400.0,0.00018773,2]
[378006002,1754665845861,-400.0,0.00018773,2]
[378006003,1754665845873,-400.0,0.00018773,2]
[378006004,1754665845883,-2025.14,0.00018773,2]
[378006005,1754665845893,-628.07,0.00018773,2]
[378006006,1754665845902,-688.33,0.00018773,2]
[378006007,1754665845912,-400.0,0.00018773,2]
[378006008,1754665845923,-400.0,0.00018773,2]
[378006009,1754665845932,-612.57,0.00018773,2]
[378006010,1754665845942,-483.07,0.00018773,2]
[378006011,1754665845952,-3210.22,0.00018773,2]
[378006012,1754665845962,-531.47,0.00018773,2]
[378006013,1754665845972,-400.0,0.00018773,2]
[378006014,1754665845981,-5188.28,0.00018773,2]
[378006015,1754665845991,-1541.01,0.00018773,2]
[378006016,1754665846001,-5876.12,0.00018773,2]
[378006017,1754665846010,-400.0,0.00018773,2]
[378006018,1754665846020,-513.95,0.00018773,2]
[378006019,1754665846030,-400.0,0.00018773,2]
[378006020,1754665846041,-400.0,0.00018773,2]
[378006021,1754665846051,-420.86,0.00018773,2]
[378006022,1754665846060,-1585.22,0.00018773,2]
[378006023,1754665846071,-400.0,0.00018773,2]
[378006024,1754665846085,-4259.87,0.00018773,2]
[378006025,1754665846095,-400.0,0.00018773,2]
[378006026,1754665846104,-8121.87,0.00018773,2]
[378006027,1754665846114,-400.0,0.00018773,2]
[378006028,1754665846123,-400.0,0.00018773,2]
[378006029,1754665846134,-1121.8,0.00018773,2]
[378006030,1754665846144,-1476.09,0.00018773,2]
[378006031,1754665846156,-644.13,0.00018773,2]
[378006032,1754665846166,-575.11,0.00018773,2]
[378006033,1754665846175,-6057.34,0.00018773,2]
[378006034,1754665846184,-619.05,0.00018773,2]
[378006035,1754665846194,-528.46,0.00018773,2]
[378006036,1754665846204,-6693.11,0.00018773,2]
[378006037,1754665846213,-1345.7,0.00018773,2]
[378006038,1754665846223,-1709.16,0.00018773,2]
[378006039,1754665846233,-1291.02,0.00018773,2]
[378006040,1754665846242,-1813.43,0.00018773,2]
[378006041,1754665846252,-422.85,0.00018773,2]
[378006042,1754665846262,-400.0,0.00018773,2]
[378006043,1754665846272,-400.0,0.00018773,2]
[378006044,1754665846282,-2167.73,0.00018773,2]
[378006045,1754665846295,-652.0,0.00018773,2]
[378006046,1754665846304,-400.0,0.00018773,2]
[378006047,1754665846314,-400.0,0.00018773,2]
[378006048,1754665846323,-1469.15,0.00018773,2]
[378006049,1754665846333,-646.71,0.00018773,2]
[378006050,1754665846343,-563.16,0.00018773,2]
[378006051,1754665846353,-1310.0,0.00018773,2]
[378006052,1754665846363,-824.19,0.00018773,2]
[378006053,1754665846373,-609.49,0.00018773,2]
[378006054,1754665846383,-400.0,0.00018773,2]
[378006055,1754665846394,-9554.86,0.00018773,2]
[378006056,1754665846404,-1273.12,0.00018773,2]
[378006057,1754665846414,-1930.11,0.00018773,2]
[378006058,1754665846423,-400.0,0.00018773,2]
[378006059,1754665846433,-4202.88,0.00018773,2]
[378006060,1754665846442,-469.3,0.00018773,2]
[378006061,1754665846451,-6401.52,0.00018773,2]
[378006062,1754665846461,-400.0,0.00018773,2]
[378006063,1754665846471,-400.0,0.00018773,2]
[378006064,1754665846480,-400.0,0.00018773,2]
[378006065,1754665846489,-643.68,0.00018773,2]
[378006066,1754665846499,-400.0,0.00018773,2]
[378006067,1754665846508,-1810.41,0.00018773,2]
[378006068,1754665846518,-1108.42,0.00018773,2]
[378006069,1754665846528,-569.88,0.00018773,2]
[378006070,1754665846539,-400.0,0.00018773,2]
[378006071,1754665846549,-828.43,0.00018773,2]
[378006072,1754665846558,-400.0,0.00018773,2]
[378006073,1754665846568,-5768.73,0.00018773,2]
[378006074,1754665846577,-498.93,0.00018773,2]
[378006075,1754665846587,-603.11,0.00018773,2]
[378006076,1754665846596,-5374.73,0.00018773,2]
[378006077,1754665846606,-400.0,0.00018773,2]
[378006078,1754665846616,-817.89,0.00018773,2]
[378006079,1754665846626,-5381.91,0.00018773,2]
[378006080,1754665846639,-3846.97,0.00018773,2]
[378006081,1754665846649,-514.29,0.00018773,2]
[378006082,1754665846658,-1228.87,0.00018773,2]
[378006084,1754665846668,-400.0,0.00018773,2]
[378006085,1754665846679,-400.0,0.00018773,2]
[378006086,1754665846689,-400.0,0.00018773,2]
[378006087,1754665846698,-4234.54,0.00018773,2]
[378006088,1754665846710,-400.0,0.00018773,2]
[378006089,1754665846721,-887.14,0.00018773,2]
[378006090,1754665846731,-400.0,0.00018773,2]
[378006091,1754665846740,-194.0,0.000188,2]
[378006092,1754665846750,-5511.0,0.000188,3]
[378006093,1754665846760,-5107.58610519,0.0001881,2]
[378006094,1754665846769,-898.15218,0.0001881,2]
[378006095,1754665846779,-898.15218,0.0001881,2]
[378006096,1754665846793,-898.15218,0.0001881,2]
[378006097,1754665846803,-540.76205,0.0001881,2]
[378006098,1754665846812,-650.20878153,0.0001882,2]
[378006099,1754665846821,-5107.58610519,0.00018868,2]
[378006100,1754665846831,-716.81,0.00018877,2]
[378006101,1754665846841,-754.189,0.000189,2]
[378006102,1754665846850,-510.58728426,0.000189,2]
[378006103,1754665846860,-1214.280329,0.000189,2]
[378006104,1754665846870,-540.76205,0.0001892,2]
[378006105,1754665846880,-5107.58610519,0.00018927,2]
[378006106,1754665846890,-181.13275379,0.00018927,2]
[378006107,1754665846899,-2599.99070675,0.00018948,2]
[378006108,1754665846909,-151.0,0.00018948,2]
[378006109,1754665846919,-151.0,0.00018948,2]
[378006110,1754665846929,-151.0,0.00018948,2]
[378006111,1754665846939,-959.0,0.0001897,2]
[378006112,1754665846954,-1655.72,0.0001897,2]
[378006113,1754665846963,-1171.0,0.0001897,2]
[378006114,1754665846973,-892.0,0.0001897,2]
[378006115,1754665846982,-6077.0,0.0001897,2]
[378006116,1754665846992,-21445.0,0.0001897,2]
[378006117,1754665847002,-4142.0,0.0001897,2]
[378006118,1754665847012,-866.0,0.0001897,2]
[378006119,1754665847022,-500.0,0.00018973,2]
[378006120,1754665847032,-500.0,0.00018973,2]
[378006121,1754665847044,-500.0,0.00018973,2]
[378006122,1754665847053,-271.55185801,0.00018973,2]
[378006123,1754665847062,-509.53274943,0.00018973,2]
[378006124,1754665847072,-152.22332528,0.00018973,2]
[378006125,1754665847082,-500.0,0.00018973,2]
[378006126,1754665847091,-255.67,0.00018979,2]
[378006127,1754665847101,-156.94633586,0.0001899,2]
[378006128,1754665847110,-3422.57,0.00018999,2]
[378006129,1754665847120,-658.93,0.00018999,2]
[378006130,1754665847129,-1660.03,0.00018999,2]
[378006131,1754665847139,-1000.0,0.00018999,2]
[378006132,1754665847148,-3123.08,0.00018999,2]
[378006133,1754665847158,-3844.27,0.00018999,2]
[378006134,1754665847167,-2135.1,0.00018999,2]
[378006135,1754665847176,-4731.17,0.00018999,2]
[378006136,1754665847186,-1000.0,0.00018999,2]
[378006137,1754665847195,-1890.97,0.00018999,2]
[378006138,1754665847205,-4802.61,0.00018999,2]
[378006139,1754665847214,-1946.85,0.00018999,2]
[378006140,1754665847224,-1274.17,0.00018999,2]
[378006141,1754665847233,-2174.26,0.00018999,2]
[378006142,1754665847242,-716.81,0.00018999,2]
[378006143,1754665847252,-716.81,0.00018999,2]
[378006144,1754665847261,-716.81,0.00018999,2]
[378006145,1754665847272,-716.81,0.00018999,2]
[378006146,1754665847282,-716.81,0.00018999,2]
[378006147,1754665847294,-716.81,0.00018999,2]
[378006148,1754665847303,-716.81,0.00018999,2]
[378006149,1754665847313,-716.81,0.00018999,2]
[378006150,1754665847323,-716.81,0.00018999,2]
[378006151,1754665847334,-716.81,0.00018999,2]
[378006152,1754665847344,-716.81,0.00018999,2]
[378006153,1754665847354,-716.81,0.00018999,2]
[378006154,1754665847364,-716.81,0.00018999,2]
[378006155,1754665847373,-716.81,0.00018999,2]
[378006156,1754665847389,-716.81,0.00018999,2]
[378006157,1754665847399,-716.81,0.00018999,2]
[378006158,1754665847408,-716.81,0.00018999,2]
[378006159,1754665847418,-716.81,0.00018999,2]
[378006160,1754665847427,-716.81,0.00018999,2]
[378006161,1754665847437,-716.81,0.00018999,2]
[378006162,1754665847447,-716.81,0.00018999,2]
[378006163,1754665847458,-475.7,0.00018999,2]
[378006164,1754665847468,-151.0,0.00018999,2]
[378006165,1754665847477,-400.0,0.00018999,2]
[378006166,1754665847826,-151.0,0.00018999,2]
[378006167,1754665847836,-4446.0,0.00018999,2]
[378006168,1754665847846,-151.0,0.00018999,2]
[378006169,1754665847855,-151.0,0.00018999,2]
[378006170,1754665847864,-1915.8,0.00018999,2]
[378006171,1754665847873,-151.0,0.00018999,2]
[378006172,1754665847883,-702.74,0.00018999,2]
[378006173,1754665847892,-368.599366,0.00018999,2]
[378006174,1754665847901,-151.0,0.00018999,2]
[378006175,1754665847911,-157.944478,0.00018999,2]
[378006176,1754665847921,-368.599366,0.00018999,2]
[378006177,1754665847931,-151.0,0.00018999,2]
[378006178,1754665847940,-255.832727,0.00018999,2]
[378006179,1754665847950,-255.832727,0.00018999,2]
[378006180,1754665847959,-400.0,0.00018999,2]
[378006181,1754665847969,-151.0,0.00018999,2]
[378006182,1754665847978,-151.0,0.00018999,2]
[378006183,1754665847988,-4942.02,0.00018999,2]
[378006184,1754665847997,-151.0,0.00018999,2]
[378006185,1754665848007,-151.0,0.00018999,2]
[378006186,1754665848016,-963.1,0.00018999,2]
[378006187,1754665848026,-2052.92,0.00018999,2]
[378006188,1754665848036,-151.0,0.00018999,2]
[378006189,1754665848046,-585.33,0.00018999,2]
[378006190,1754665848055,-1279.58,0.00018999,2]
[378006191,1754665848065,-1279.58,0.00018999,2]
[378006192,1754665848076,-1279.58,0.00018999,2]
[378006193,1754665848085,-1279.58,0.00018999,2]
[378006194,1754665848094,-151.0,0.00018999,2]
[378006195,1754665848104,-1279.58,0.00018999,2]
[378006196,1754665848114,-1279.58,0.00018999,2]
[378006197,1754665848123,-1279.58,0.00018999,2]
[378006198,1754665848134,-1279.58,0.00018999,2]
[378006199,1754665848143,-1279.58,0.00018999,2]
[378006200,1754665848152,-1279.58,0.00018999,2]
[378006201,1754665848161,-1279.58,0.00018999,2]
[378006202,1754665848170,-1279.58,0.00018999,2]
[378006203,1754665848180,-1279.58,0.00018999,2]
[378006204,1754665848189,-151.0,0.00018999,2]
[378006205,1754665848199,-151.0,0.00018999,2]
[378006206,1754665848208,-5833.49,0.00018999,2]
[378006207,1754665848218,-1677.05,0.00018999,2]
[378006208,1754665848227,-203.618454,0.00018999,2]
[378006209,1754665848237,-3970.95,0.00018999,2]
[378006210,1754665848246,-203.618454,0.00018999,2]
[378006211,1754665848256,-151.0,0.00018999,2]
[378006212,1754665848266,-151.0,0.00018999,2]
[378006213,1754665848275,-888.103447,0.00018999,2]
[378006214,1754665848288,-151.0,0.00018999,2]
[378006215,1754665848298,-888.103447,0.00018999,2]
[378006216,1754665848308,-2534.52,0.00018999,2]
[378006217,1754665848318,-151.0,0.00018999,2]
[378006218,1754665848327,-450.19,0.00018999,2]
[378006219,1754665848337,-6324.18,0.00018999,2]
[378006220,1754665848347,-1755.03,0.00018999,2]
[378006221,1754665848357,-400.0,0.00018999,2]
[378006222,1754665848367,-90281.84954826,0.00019,2]
[378006223,1754665848377,-14181.36134135,0.00019,2]
[378006224,1754665848387,-4440.42,0.00019,2]
[378006225,1754665848397,-268661.31644602,0.00019,2]
[378006226,1754665848406,-292.43020029,0.00019,2]
[378006227,1754665848416,-140036.53954875,0.00019,2]
[378006228,1754665848950,-500.0,0.00018498,2]
[378006229,1754665848960,-1649.48574132,0.00019,2]
[378006230,1754665848971,-1620.6,0.00019,2]
[378006231,1754665849016,-274.61443225,0.00018634,2]
[378006232,1754665849026,-2540158.84263294,0.00019,2]
[378006233,1754665849035,-151.0,0.00019,2]
[378006234,1754665849048,-200.27653,0.00019,2]
[378006235,1754665849058,-151.0,0.00019,2]
[378006236,1754665849067,-151.0,0.00019,2]
[378006237,1754665849077,-151.0,0.00019,2]
[378006238,1754665849086,-278.223,0.00019,2]
[378006239,1754665849096,-151.0,0.00019,2]
[378006240,1754665849106,-151.0,0.00019,2]
[378006241,1754665849115,-151.0,0.00019,2]
[378006242,1754665849125,-270.242487,0.00019,2]
[378006243,1754665849135,-152.596971,0.00019,2]
[378006244,1754665849145,-151.0,0.00019,2]
[378006245,1754665849155,-151.0,0.00019,2]
[378006246,1754665849165,-151.0,0.00019,2]
[378006247,1754665849174,-151.0,0.00019,2]
[378006248,1754665849184,-151.0,0.00019,2]
[378006249,1754665849194,-151.0,0.00019,2]
[378006250,1754665849204,-151.0,0.00019,2]
[378006251,1754665849213,-151.0,0.00019,2]
[378006252,1754665849223,-151.0,0.00019,2]
[378006253,1754665849233,-151.0,0.00019,2]
[378006254,1754665849243,-151.0,0.00019,2]
[378006255,1754665849253,-151.0,0.00019,2]
[378006256,1754665849262,-233.583565,0.00019,2]
[378006257,1754665849272,-151.0,0.00019,2]
[378006258,1754665849281,-291.611148,0.00019,2]
[378006259,1754665849291,-159.699595,0.00019,2]
[378006260,1754665849301,-151.0,0.00019,2]
[378006261,1754665849311,-151.0,0.00019,2]
[378006262,1754665849321,-152.120712,0.00019,2]
[378006263,1754665849331,-150.0,0.00019,2]
[378006264,1754665849340,-151.0,0.00019,2]
[378006265,1754665849350,-327.92633037,0.00019,2]
[378006266,1754665849360,-399.572307,0.00019,2]
[378006267,1754665849369,-399.572307,0.00019,2]
[378006268,1754665849379,-151.0,0.00019,2]
[378006269,1754665849389,-399.572307,0.00019,2]
[378006270,1754665849399,-399.572307,0.00019,2]
[378006271,1754665849409,-150.0,0.00019,2]
[378006272,1754665849418,-495.63220568,0.00019,2]
[378006273,1754665849428,-151.0,0.00019,2]
[378006274,1754665849438,-151.0,0.00019,2]
[378006275,1754665849448,-151.0,0.00019,2]
[378006276,1754665849457,-151.0,0.00019,2]
[378006277,1754665849466,-151.0,0.00019,2]
[378006278,1754665849476,-151.0,0.00019,2]
[378006279,1754665849486,-215.41467597,0.00019,2]
[378006280,1754665849495,-1088.4634994,0.00019,2]
[378006281,1754665849505,-161.8502966,0.00019,2]
[378006282,1754665849515,-151.0,0.00019,2]
[378006283,1754665849524,-192.817032,0.00019,2]
[378006284,1754665849534,-151.0,0.00019,2]
[378006285,1754665849545,-151.0,0.00019,2]
[378006286,1754665849555,-151.0,0.00019,2]
[378006287,1754665849565,-151.0,0.00019,2]
[378006288,1754665849574,-151.0,0.00019,2]
[378006289,1754665849584,-151.0,0.00019,2]
[378006290,1754665849594,-151.0,0.00019,2]
[378006291,1754665849603,-151.0,0.00019,2]
[378006292,1754665849612,-151.0,0.00019,2]
[378006293,1754665849622,-151.0,0.00019,2]
[378006294,1754665849633,-151.0,0.00019,2]
[378006295,1754665849644,-271.8,0.00019,2]
[378006296,1754665849653,-151.0,0.00019,2]
[378006297,1754665849663,-151.0,0.00019,2]
[378006298,1754665849672,-151.0,0.00019,2]
[378006299,1754665849682,-200.0,0.00019,2]
[378006300,1754665849691,-237.55205,0.00019,2]
[378006301,1754665849701,-2189.97,0.00019,2]
[378006302,1754665849710,-151.0,0.00019,2]
[378006303,1754665849720,-151.0,0.00019,2]
[378006304,1754665849730,-151.948819,0.00019,2]
[378006305,1754665849739,-151.0,0.00019,2]
[378006306,1754665849748,-151.0,0.00019,2]
[378006307,1754665849758,-151.0,0.00019,2]
[378006308,1754665849767,-188.393509,0.00019,2]
[378006309,1754665849777,-151.0,0.00019,2]
[378006310,1754665849787,-188.393509,0.00019,2]
[378006311,1754665849799,-151.0,0.00019,2]
[378006312,1754665849808,-151.0,0.00019,2]
[378006313,1754665849818,-151.0,0.00019,2]
[378006314,1754665849827,-151.0,0.00019,2]
[378006315,1754665849837,-151.0,0.00019,2]
[378006316,1754665849848,-151.0,0.00019,2]
[378006317,1754665849857,-151.0,0.00019,2]
[378006318,1754665849867,-236.199238,0.00019,2]
[378006319,1754665849876,-151.0,0.00019,2]
[378006320,1754665849886,-151.0,0.00019,2]
[378006321,1754665849895,-151.0,0.00019,2]
[378006322,1754665849905,-191.631695,0.00019,2]
[378006323,1754665849915,-151.0,0.00019,2]
[378006324,1754665849924,-151.0,0.00019,2]
[378006325,1754665849933,-151.0,0.00019,2]
[378006326,1754665849943,-151.0,0.00019,2]
[378006327,1754665849952,-151.0,0.00019,2]
[378006328,1754665850040,-158.654388,0.00019,2]
[378006329,1754665850049,-25180.09155517,0.00019,2]
[378006330,1754665850058,-151.0,0.00019,2]
[378006331,1754665850067,-151.0,0.00019,2]
[378006332,1754665850077,-151.0,0.00019,2]
[378006333,1754665850086,-151.0,0.00019,2]
[378006334,1754665850095,-151.0,0.00019,2]
[378006335,1754665850104,-151.0,0.00019,2]
[378006336,1754665850113,-151.0,0.00019,2]
[378006337,1754665850123,-151.0,0.00019,2]
[378006338,1754665850132,-151.0,0.00019,2]
[378006339,1754665850141,-152.727331,0.00019,2]
[378006340,1754665850151,-151.0,0.00019,2]
[378006341,1754665850160,-151.0,0.00019,2]
[378006342,1754665850169,-151.0,0.00019,2]
[378006343,1754665850179,-151.0,0.00019,2]
[378006344,1754665850188,-406.416501,0.00019,2]
[378006345,1754665850197,-406.416501,0.00019,2]
[378006346,1754665850206,-294.672971,0.00019,2]
[378006347,1754665850214,-294.672971,0.00019,2]
[378006348,1754665850222,-151.000002,0.00019,2]
[378006349,1754665850231,-151.0,0.00019,2]
[378006350,1754665850240,-151.0,0.00019,2]
[378006351,1754665850249,-151.0,0.00019,2]
[378006352,1754665850259,-151.0,0.00019,2]
[378006353,1754665850268,-151.0,0.00019,2]
[378006354,1754665850277,-151.0,0.00019,2]
[378006355,1754665850286,-151.0,0.00019,2]
[378006356,1754665850298,-151.0,0.00019,2]
[378006357,1754665850307,-151.0,0.00019,2]
[378006358,1754665850315,-201895.37566005,0.00019,2]
[378006359,1754665850324,-151.0,0.00019,2]
[378006360,1754665850333,-151.0,0.00019,2]
[378006361,1754665850341,-151.0,0.00019,2]
[378006362,1754665850351,-194.659064,0.00019,2]
[378006363,1754665850360,-194.659064,0.00019,2]
[378006364,1754665850369,-194.659064,0.00019,2]
[378006365,1754665850377,-194.659064,0.00019,2]
[378006366,1754665850387,-151.0,0.00019,2]
[378006367,1754665850396,-151.0,0.00019,2]
[378006368,1754665850404,-151.0,0.00019,2]
[378006369,1754665850413,-252.253963,0.00019,2]
[378006370,1754665850422,-151.0,0.00019,2]
[378006371,1754665850431,-151.0,0.00019,2]
[378006372,1754665850440,-151.0,0.00019,2]
[378006373,1754665850449,-151.0,0.00019,2]
[378006374,1754665850459,-151.0,0.00019,2]
[378006375,1754665850468,-151.0,0.00019,2]
[378006376,1754665850477,-151.0,0.00019,2]
[378006377,1754665850486,-151.0,0.00019,2]
[378006378,1754665850495,-176.990212,0.00019,2]
[378006379,1754665850505,-176.990212,0.00019,2]
[378006380,1754665850514,-151.0,0.00019,2]
[378006381,1754665850523,-151.0,0.00019,2]
[378006382,1754665850532,-151.0,0.00019,2]
[378006383,1754665850542,-272.007028,0.00019,2]
[378006384,1754665850551,-176.990212,0.00019,2]
[378006385,1754665850560,-176.990212,0.00019,2]
[378006386,1754665850569,-151.0,0.00019,2]
[378006387,1754665850578,-151.0,0.00019,2]
[378006388,1754665850588,-151.0,0.00019,2]
[378006389,1754665850597,-151.0,0.00019,2]
[378006390,1754665850606,-151.0,0.00019,2]
[378006391,1754665850615,-151.0,0.00019,2]
[378006392,1754665850625,-151.0,0.00019,2]
[378006393,1754665850637,-151.0,0.00019,2]
[378006394,1754665850647,-151.0,0.00019,2]
[378006395,1754665850657,-151.0,0.00019,2]
[378006396,1754665850666,-180.546005,0.00019,2]
[378006397,1754665850677,-151.0,0.00019,2]
[378006398,1754665850686,-151.0,0.00019,2]
[378006399,1754665850695,-151.0,0.00019,2]
[378006400,1754665850705,-151.88628,0.00019,2]
[378006401,1754665850714,-151.0,0.00019,2]
[378006402,1754665850723,-151.0,0.00019,2]
[378006403,1754665850733,-151.0,0.00019,2]
[378006404,1754665850742,-151.0,0.00019,2]
[378006405,1754665850752,-151.0,0.00019,2]
[378006406,1754665850761,-151.0,0.00019,2]
[378006407,1754665850770,-771.541501,0.00019,2]
[378006408,1754665850779,-771.541501,0.00019,2]
[378006409,1754665850789,-771.541501,0.00019,2]
[378006410,1754665850799,-771.541501,0.00019,2]
[378006411,1754665850807,-151.0,0.00019,2]
[378006412,1754665850817,-151.0,0.00019,2]
[378006413,1754665850827,-151.0,0.00019,2]
[378006414,1754665850836,-151.0,0.00019,2]
[378006415,1754665850846,-151.0,0.00019,2]
[378006416,1754665850855,-151.0,0.00019,2]
[378006417,1754665850864,-151.0,0.00019,2]
[378006418,1754665850874,-151.0,0.00019,2]
[378006419,1754665850883,-151.0,0.00019,2]
[378006420,1754665850892,-151.0,0.00019,2]
[378006421,1754665850902,-151.0,0.00019,2]
[378006422,1754665850911,-151.0,0.00019,2]
[378006423,1754665850921,-151.0,0.00019,2]
[378006424,1754665850931,-151.0,0.00019,2]
[378006425,1754665850940,-368.599366,0.00019,2]
[378006426,1754665850949,-368.599366,0.00019,2]
[378006427,1754665850959,-368.599366,0.00019,2]
[378006428,1754665850968,-151.0,0.00019,2]
[378006429,1754665850977,-151.0,0.00019,2]
[378006430,1754665850986,-198.3612,0.00019,2]
[378006431,1754665850995,-368.599366,0.00019,2]
[378006432,1754665851004,-368.599366,0.00019,2]
[378006433,1754665851013,-368.599366,0.00019,2]
[378006434,1754665851023,-151.0,0.00019,2]
[378006435,1754665851032,-151.0,0.00019,2]
[378006436,1754665851042,-156.70578,0.00019,2]
[378006437,1754665851051,-255.832727,0.00019,2]